bitfinex/quotes_BTCUSD_20250803
["timestamp","ask_amount","ask_price","bid_price","bid_amount"]
[1754264736541,6.54395453,114430.0,114420.0,0.13712758]
[1754264738881,6.54397403,114430.0,114420.0,0.13712758]
[1754264740750,6.55765668,114430.0,114420.0,0.13712758]
[1754264741090,6.55448668,114430.0,114420.0,0.16607758]
[1754264743750,6.55448668,114430.0,114420.0,0.13712758]
[1754264743967,6.55763668,114430.0,114420.0,0.13712758]
[1754264744566,6.55763101,114430.0,114420.0,0.13712758]
[1754264748403,6.21763101,114430.0,114420.0,0.13712758]
[1754264750323,6.55763101,114430.0,114420.0,0.13712758]
[1754264750538,6.37077201,114430.0,114420.0,0.13712758]
[1754264752648,6.36762201,114430.0,114420.0,0.13712758]
[1754264753215,6.36762201,114430.0,114420.0,0.16607758]
[1754264753820,6.36762201,114430.0,114420.0,0.03239758]
[1754264754067,6.36762201,114430.0,114420.0,0.16607758]
[1754264754260,6.37077201,114430.0,114420.0,0.13712758]
[1754264754702,6.37077201,114430.0,114410.0,0.03237]
[1754264755020,6.22069719,114420.0,114410.0,0.03241758]
[1754264755237,6.27082791,114420.0,114410.0,0.16287758]
[1754264755459,6.32506657,114420.0,114410.0,0.16287758]
[1754264755660,6.35327657,114420.0,114410.0,0.16287758]
[1754264756293,6.35327657,114420.0,114410.0,0.16387758]
[1754264756501,6.35327657,114420.0,114410.0,0.16487758]
[1754264756925,6.35327657,114420.0,114410.0,0.16387758]
[1754264757781,6.35642657,114420.0,114410.0,0.13492758]
[1754264759229,6.80012657,114420.0,114410.0,0.13492758]
[1754264759461,6.80112753,114420.0,114410.0,0.13392758]
[1754264759694,6.80012753,114420.0,114410.0,0.13392758]
[1754264759924,6.80212753,114420.0,114410.0,0.13392758]
[1754264761998,6.8199086,114420.0,114410.0,0.00024758]
[1754264762721,6.8209086,114420.0,114410.0,0.00024758]
[1754264763496,6.7875086,114420.0,114410.0,0.03419758]
[1754264763740,6.0774808,114420.0,114410.0,0.03419758]
[1754264764228,6.69761937,114420.0,114410.0,0.03419758]
[1754264764904,5.93977212,114420.0,114410.0,0.03419758]
[1754264767781,5.38848789,114420.0,114410.0,0.03419758]
[1754264768206,4.94478789,114420.0,114410.0,0.03419758]
[1754264769316,4.94478789,114420.0,114410.0,0.12283042]
[1754264769534,4.93660462,114420.0,114410.0,0.12283042]
[1754264771742,4.93560462,114420.0,114410.0,0.12283042]
[1754264771984,4.93360462,114420.0,114410.0,0.12283042]
[1754264774116,4.92746579,114420.0,114410.0,0.12283042]
[1754264774321,4.93360363,114420.0,114410.0,0.12283042]
[1754264775148,4.59360363,114420.0,114410.0,0.12283042]
[1754264775597,4.93360363,114420.0,114410.0,0.12283042]
[1754264775802,4.91114523,114420.0,114410.0,0.12283042]
[1754264779392,4.359861,114420.0,114410.0,0.12283042]
[1754264779571,4.91114523,114420.0,114410.0,0.12283042]
[1754264784518,4.91114523,114420.0,114410.0,0.12501554]
[1754264785177,0.91757023,114420.0,114410.0,0.15001554]
[1754264785962,0.91757023,114420.0,114410.0,0.15501554]
[1754264792601,0.366286,114420.0,114410.0,0.32982543]
[1754264792817,0.91757023,114420.0,114410.0,0.32764031]
[1754264793240,0.91757023,114420.0,114410.0,0.15283042]
[1754264793451,0.91757023,114420.0,114410.0,0.15501554]
[1754264794079,0.91757023,114420.0,114410.0,0.18001554]
[1754264794288,0.91757023,114420.0,114410.0,0.17783042]
[1754264794438,0.91757023,114420.0,114410.0,0.15283042]
[1754264794650,0.91757023,114420.0,114410.0,0.18001554]
[1754264794857,0.91757023,114420.0,114410.0,0.17783042]
[1754264797966,0.366286,114420.0,114410.0,0.17783042]
[1754264798197,0.91757023,114420.0,114410.0,0.17783042]
[1754264800739,0.72301109,114420.0,114410.0,0.17783042]
[1754264800962,0.57755923,114420.0,114410.0,0.17783042]
[1754264802752,0.64608014,114420.0,114410.0,0.17783042]
[1754264803144,0.64608014,114420.0,114410.0,0.38791042]
[1754264805456,0.64608014,114420.0,114410.0,0.36291042]
[1754264805627,1.26588528,114420.0,114410.0,0.38791042]
[1754264805829,1.26794528,114420.0,114410.0,0.38791042]
[1754264806492,1.30013528,114420.0,114410.0,0.30396042]
[1754264806722,0.61160554,114420.0,114410.0,0.30396042]
[1754264810941,0.61160554,114420.0,114410.0,0.46256042]
[1754264811292,0.60863554,114420.0,114410.0,0.48756042]
[1754264811498,0.57941554,114420.0,114410.0,0.51900042]
[1754264811703,0.57941554,114420.0,114410.0,0.49400042]
[1754264811906,0.60863554,114420.0,114410.0,0.43756042]
[1754264812381,0.60863554,114420.0,114410.0,0.43752042]
[1754264813930,0.95160554,114420.0,114410.0,0.30396042]
[1754264814139,4.94518054,114420.0,114410.0,0.30396042]
[1754264814341,4.94518054,114420.0,114410.0,0.43752042]
[1754264822387,4.94518054,114420.0,114410.0,0.22744042]
[1754264823773,4.94518054,114420.0,114410.0,0.09388042]
[1754264823987,4.94518054,114420.0,114410.0,0.22744042]
[1754264824615,4.91093054,114420.0,114410.0,0.26398042]
[1754264826373,0.91735554,114420.0,114410.0,0.26398042]
[1754264828999,0.366275,114420.0,114410.0,0.28898042]
[1754264829207,0.026275,114420.0,114410.0,0.31398042]
[1754264829401,0.57735554,114420.0,114410.0,0.31398042]
[1754264831991,0.57735554,114420.0,114410.0,0.52410042]
[1754264832608,0.57735554,114420.0,114410.0,0.49910042]
[1754264832815,0.57735554,114420.0,114410.0,0.52410042]
[1754264834484,0.57735554,114420.0,114410.0,0.49910042]
[1754264834683,0.57735554,114420.0,114410.0,0.52410042]
[1754264839547,0.57735554,114420.0,114410.0,0.49910042]
[1754264839749,0.57735554,114420.0,114410.0,0.52410042]
[1754264843680,0.026275,114420.0,114410.0,0.52410042]
[1754264843879,0.57735554,114420.0,114410.0,0.52410042]
[1754264845406,0.026275,114420.0,114410.0,0.52410042]
[1754264845616,0.57735554,114420.0,114410.0,0.52410042]
[1754264852620,0.57735554,114420.0,114410.0,0.49910042]
[1754264852850,0.57735554,114420.0,114410.0,0.52410042]
[1754264854715,0.57735554,114420.0,114410.0,0.49910042]
[1754264854882,0.57735554,114420.0,114410.0,0.52410042]
[1754264856189,0.57735554,114420.0,114410.0,0.49910042]
[1754264857926,0.57947554,114420.0,114410.0,0.49910042]
[1754264859334,0.61306554,114420.0,114410.0,0.46256042]
[1754264860272,0.61306554,114420.0,114410.0,0.43756042]
[1754264860487,0.61306554,114420.0,114410.0,0.46252042]
[1754264861022,0.61306554,114420.0,114410.0,0.43752042]
[1754264861531,0.61306554,114420.0,114410.0,0.46252042]
[1754264862272,0.61306554,114420.0,114410.0,0.30400042]
[1754264862462,0.95306554,114420.0,114410.0,0.30400042]
[1754264862664,0.95306554,114420.0,114410.0,0.43748042]
[1754264864677,0.95306554,114420.0,114410.0,0.30400042]
[1754264864883,4.94664054,114420.0,114410.0,0.43748042]
[1754264871649,4.94664054,114420.0,114410.0,0.30400042]
[1754264871851,4.94664054,114420.0,114410.0,0.43748042]
[1754264873539,4.91305054,114420.0,114410.0,0.46860042]
[1754264873731,4.91305054,114420.0,114410.0,0.47163042]
[1754264874132,0.91735554,114420.0,114410.0,0.47163042]
[1754264874781,0.98607128,114420.0,114410.0,0.49663042]
[1754264876329,0.026275,114420.0,114410.0,0.67144031]
[1754264876530,0.61979628,114430.0,114420.0,0.19979461]
[1754264876783,0.66764812,114430.0,114420.0,0.24921284]
[1754264876983,0.35392012,114430.0,114420.0,0.28126284]
[1754264878005,0.35392012,114430.0,114420.0,0.28426284]
[1754264878414,0.69392012,114430.0,114420.0,0.28826284]
[1754264879247,0.69392012,114430.0,114420.0,0.12978284]
[1754264879607,0.69392012,114430.0,114420.0,0.28826284]
[1754264880564,0.366272,114430.0,114420.0,0.28826284]
[1754264880777,0.91702056,114430.0,114420.0,0.28826284]
[1754264882210,0.366272,114430.0,114420.0,0.28826284]
[1754264882412,0.91702056,114430.0,114420.0,0.28826284]
[1754264883022,0.91702056,114430.0,114420.0,0.26326284]
[1754264883234,0.91901056,114430.0,114420.0,0.26326284]
[1754264883463,0.94782056,114430.0,114420.0,0.25809284]
[1754264883901,0.94782056,114430.0,114420.0,0.22907284]
[1754264885004,0.94782056,114430.0,114420.0,0.25407284]
[1754264885209,0.91901056,114430.0,114420.0,0.28309284]
[1754264889787,0.91901056,114430.0,114420.0,0.28822284]
[1754264895525,0.91901056,114430.0,114420.0,0.49830284]
[1754264897629,0.91901056,114430.0,114420.0,0.47330284]
[1754264897841,0.91901056,114430.0,114420.0,0.49527284]
[1754264899161,0.95224056,114430.0,114420.0,0.30571284]
[1754264899372,0.95224056,114430.0,114420.0,0.43915284]
[1754264904906,0.95224056,114430.0,114420.0,0.30571284]
[1754264905079,0.95224056,114430.0,114420.0,0.43911284]
[1754264905867,0.94908056,114430.0,114420.0,0.43911284]
[1754264906112,0.94908056,114430.0,114420.0,0.46845284]
[1754264906828,0.94908056,114430.0,114420.0,0.33505284]
[1754264907037,0.94908056,114430.0,114420.0,0.46845284]
[1754264909974,0.94908056,114430.0,114420.0,0.33505284]
[1754264910204,0.94908056,114430.0,114420.0,0.46845284]
[1754264910613,0.94908056,114430.0,114420.0,0.33505284]
[1754264910792,1.63805594,114430.0,114420.0,0.46845284]
[1754264910992,1.63805594,114430.0,114420.0,0.30571284]
[1754264911162,1.64121594,114430.0,114420.0,0.43911284]
[1754264911817,1.63805594,114430.0,114420.0,0.43911284]
[1754264911973,1.63805594,114430.0,114420.0,0.46845284]
[1754264912804,0.94932447,114430.0,114420.0,0.46845284]
[1754264914747,0.91925447,114430.0,114420.0,0.25837284]
[1754264915838,0.91726447,114430.0,114420.0,0.26337284]
[1754264922892,0.91931447,114430.0,114420.0,0.26337284]
[1754264923508,0.368322,114430.0,114420.0,0.26337284]
[1754264923721,0.91931447,114430.0,114420.0,0.26337284]
[1754264927754,0.91726447,114430.0,114420.0,0.26337284]
[1754264932216,0.366272,114430.0,114420.0,0.26337284]
[1754264932405,0.91726447,114430.0,114420.0,0.26337284]
[1754264934698,0.98601118,114430.0,114420.0,0.26337284]
[1754264936103,0.98601118,114430.0,114420.0,0.28837284]
[1754264938182,0.366272,114430.0,114420.0,0.28837284]
[1754264938574,0.98601118,114430.0,114420.0,0.28837284]
[1754264938801,0.98601118,114430.0,114420.0,0.49845284]
[1754264940695,0.98601118,114430.0,114420.0,0.48760397]
[1754264941747,1.60780036,114430.0,114420.0,0.48760397]
[1754264942794,0.91926855,114430.0,114420.0,0.48760397]
[1754264944978,0.72178164,114430.0,114420.0,0.48760397]
[1754264945235,0.55299655,114430.0,114420.0,0.48760397]
[1754264945464,5.1284881,114430.0,114420.0,0.22195284]
[1754264945678,4.57754155,114430.0,114420.0,0.22195284]
[1754264945886,4.60381755,114430.0,114420.0,0.22195284]
[1754264947044,4.94381755,114430.0,114420.0,0.22195284]
[1754264949021,4.94381755,114430.0,114420.0,0.08863284]
[1754264949226,4.94381755,114430.0,114420.0,0.22195284]
[1754264951831,4.94381755,114430.0,114420.0,0.22295284]
[1754264962766,5.63297526,114430.0,114420.0,0.22295284]
[1754264965174,5.63297526,114430.0,114420.0,0.08963284]
[1754264965351,5.63297526,114430.0,114420.0,0.22295284]
[1754264966471,5.63297526,114430.0,114420.0,0.22291284]
[1754264968017,6.30768653,114430.0,114420.0,0.22291284]
[1754264968453,5.6876344,114430.0,114420.0,0.22291284]
[1754264968654,5.65968174,114430.0,114420.0,0.22291284]
[1754264969350,5.65968174,114430.0,114420.0,0.08963284]
[1754264969614,6.27973387,114430.0,114420.0,0.22291284]
[1754264969773,6.30220175,114430.0,114420.0,0.13428]
[1754264970136,6.30220175,114430.0,114420.0,0.001]
[1754264970348,6.33015441,114430.0,114420.0,0.13428]
[1754264970546,6.33015441,114430.0,114420.0,0.001]
[1754264970771,6.33015441,114430.0,114420.0,0.13428]
[1754264971418,6.33015441,114430.0,114420.0,0.13328]
[1754264972375,6.33215441,114430.0,114420.0,0.13328]
[1754264974713,2.33857941,114430.0,114420.0,0.13328]
[1754264974922,6.33215441,114430.0,114420.0,0.13328]
[1754264975109,3.993575,114420.0,114410.0,0.00024758]
[1754264975316,5.85575139,114420.0,114410.0,0.22216042]
[1754264975638,5.85575139,114420.0,114410.0,0.25342042]
[1754264975998,5.88465139,114420.0,114410.0,0.25342042]
[1754264976204,5.91093139,114420.0,114410.0,0.08888042]
[1754264976401,5.91093139,114420.0,114410.0,0.22216042]
[1754264976610,5.91415139,114420.0,114410.0,0.22216042]
[1754264977029,5.91415139,114420.0,114410.0,0.22316042]
[1754264977230,5.91093139,114420.0,114410.0,0.22316042]
[1754264978603,6.3251602,114420.0,114410.0,0.08988042]
[1754264978834,6.33129132,114420.0,114410.0,0.13452758]
[1754264979276,0.62005213,114410.0,114400.0,0.00024]
[1754264979514,6.2667602,114410.0,114380.0,0.03439]
[1754264979731,3.993575,114400.0,114390.0,0.22191284]
[1754264979921,4.054,114400.0,114390.0,0.19698306]
[1754264980257,4.08070648,114400.0,114390.0,0.19698306]
[1754264980482,4.333575,114390.0,114380.0,0.03439]
[1754264980684,5.43680256,114390.0,114380.0,0.16963]
[1754264981113,5.46308756,114390.0,114380.0,0.16963]
[1754264982235,4.91147378,114390.0,114380.0,0.16963]
[1754264983177,4.91147378,114390.0,114380.0,0.17163]
[1754264983610,4.91147378,114390.0,114380.0,0.17363]
[1754264984991,4.92228049,114390.0,114380.0,0.17363]
[1754264987774,4.92228049,114390.0,114380.0,0.26226284]
[1754264987990,0.37709171,114390.0,114380.0,0.26226284]
[1754264988196,3.993575,114390.0,114380.0,0.26226284]
[1754264988435,0.026285,114390.0,114380.0,0.26226284]
[1754264989071,0.58891876,114390.0,114380.0,0.26226284]
[1754264989787,4.58448376,114390.0,114380.0,0.26226284]
[1754264990270,4.92249376,114390.0,114380.0,0.26226284]
[1754264995140,4.92448376,114390.0,114380.0,0.26226284]
[1754264998189,4.95706376,114390.0,114380.0,0.26226284]
[1754264998802,4.95706376,114390.0,114380.0,0.25933284]
[1754265001189,4.95706376,114390.0,114380.0,0.09283284]
[1754265001398,4.95706376,114390.0,114380.0,0.22611284]
[1754265001799,4.96022376,114390.0,114380.0,0.09283284]
[1754265002036,4.96022376,114390.0,114380.0,0.22611284]
[1754265002782,4.95706376,114390.0,114380.0,0.22611284]
[1754265004007,0.92891876,114390.0,114380.0,0.26723284]
[1754265004233,0.37730498,114390.0,114380.0,0.26723284]
[1754265004445,0.92891876,114390.0,114380.0,0.26723284]
[1754265026392,0.37730498,114390.0,114380.0,0.26723284]
[1754265026820,0.92891876,114390.0,114380.0,0.26723284]
[1754265044680,0.93092876,114390.0,114380.0,0.26711284]
[1754265044890,0.37730498,114390.0,114380.0,0.26715284]
[1754265045102,0.92891876,114390.0,114380.0,0.26715284]
[1754265047904,0.92891876,114390.0,114380.0,0.29362722]
[1754265048734,0.99742673,114390.0,114380.0,0.29362722]
[1754265049812,0.99943673,114390.0,114380.0,0.29362722]
[1754265051498,1.61955848,114390.0,114380.0,0.29362722]
[1754265051911,0.99943673,114390.0,114380.0,0.29362722]
[1754265052143,0.37931498,114390.0,114380.0,0.29362722]
[1754265052349,0.99943673,114390.0,114380.0,0.29362722]
[1754265060760,0.37931498,114390.0,114380.0,0.29362722]
[1754265060962,0.99943673,114390.0,114380.0,0.29362722]
[1754265061811,1.65279848,114390.0,114380.0,0.29042722]
[1754265062797,0.37931498,114390.0,114380.0,0.29042722]
[1754265063015,1.61955848,114390.0,114380.0,0.29042722]
[1754265063228,0.99943673,114390.0,114380.0,0.29362722]
[1754265068076,0.37931498,114390.0,114380.0,0.29362722]
[1754265068300,0.99943673,114390.0,114380.0,0.29362722]
[1754265075321,0.99943673,114390.0,114380.0,0.26715284]
[1754265091563,0.99943673,114390.0,114380.0,0.26395284]
[1754265091743,1.03229673,114390.0,114380.0,0.26395284]
[1754265092314,1.03229673,114390.0,114380.0,0.28995584]
[1754265092544,1.03229673,114390.0,114380.0,0.28788584]
[1754265095887,1.03229673,114390.0,114380.0,0.22587284]
[1754265095888,1.65548848,114390.0,114380.0,0.22587284]
[1754265105142,1.65548848,114390.0,114380.0,0.09283284]
[1754265105368,1.65548848,114390.0,114380.0,0.22587284]
[1754265107806,1.2781835,114390.0,114380.0,0.22587284]
[1754265108027,1.3044685,114390.0,114380.0,0.22587284]
[1754265109850,1.6444685,114390.0,114380.0,0.22587284]
[1754265112456,1.67932827,114390.0,114380.0,0.22587284]
[1754265116011,1.49087978,114390.0,114380.0,0.22587284]
[1754265116205,1.49291978,114390.0,114380.0,0.22587284]
[1754265120674,0.40114477,114390.0,114380.0,0.26425284]
[1754265120874,0.40114477,114390.0,114380.0,0.88437459]
[1754265121105,0.40114477,114390.0,114380.0,0.26425284]
[1754265121869,1.02126652,114390.0,114380.0,0.26425284]
[1754265122800,1.02126652,114390.0,114380.0,0.13125284]
[1754265123000,1.02126652,114390.0,114380.0,0.26425284]
[1754265123180,1.64336827,114390.0,114380.0,0.26425284]
[1754265123382,1.67785827,114390.0,114380.0,0.22583284]
[1754265124266,1.05773652,114390.0,114380.0,0.26425284]
[1754265124421,1.02324652,114390.0,114380.0,0.26425284]
[1754265130607,1.05773652,114390.0,114380.0,0.26425284]
[1754265133477,1.02324652,114390.0,114380.0,0.26425284]
[1754265135903,1.64336827,114390.0,114380.0,0.26425284]
[1754265136503,1.67654827,114390.0,114380.0,0.26425284]
[1754265148150,1.67654827,114390.0,114380.0,0.22583284]
[1754265149055,0.43630477,114390.0,114380.0,0.26395284]
[1754265149254,1.67654827,114390.0,114380.0,0.26596284]
[1754265149657,1.05642652,114390.0,114380.0,0.26596284]
[1754265150157,1.05642652,114390.0,114380.0,0.26588284]
[1754265151438,0.43630477,114390.0,114380.0,0.26588284]
[1754265151650,1.02324652,114390.0,114380.0,0.26588284]
[1754265152297,0.40312477,114390.0,114380.0,0.26588284]
[1754265152504,1.02126652,114390.0,114380.0,0.26588284]
[1754265155584,1.02324652,114390.0,114380.0,0.26588284]
[1754265155782,1.64336827,114390.0,114380.0,0.26588284]
[1754265156166,1.67654827,114390.0,114380.0,0.26588284]
[1754265160516,1.67654827,114390.0,114380.0,0.26387284]
[1754265163026,1.67654827,114390.0,114380.0,0.09283284]
[1754265163259,1.67654827,114390.0,114380.0,0.22571284]
[1754265165150,1.02324652,114390.0,114380.0,0.23074284]
[1754265165353,1.02324652,114390.0,114380.0,0.26552284]
[1754265165774,1.64336827,114390.0,114380.0,0.26552284]
[1754265171082,1.02324652,114390.0,114380.0,0.26552284]
[1754265172838,1.64336827,114390.0,114380.0,0.26552284]
[1754265181148,1.02126652,114390.0,114380.0,0.26552284]
[1754265182964,0.40114477,114390.0,114380.0,0.26552284]
[1754265183119,1.02126652,114390.0,114380.0,0.26552284]
[1754265186551,1.64138827,114390.0,114380.0,0.26552284]
[1754265189294,1.02126652,114390.0,114380.0,0.26552284]
[1754265195565,1.64138827,114390.0,114380.0,0.26552284]
[1754265196995,1.44769419,114390.0,114380.0,0.26552284]
[1754265197446,1.30138727,114390.0,114380.0,0.26552284]
[1754265197660,0.06114377,114390.0,114380.0,0.26552284]
[1754265197879,0.68126552,114390.0,114380.0,0.26552284]
[1754265199156,1.30138727,114390.0,114380.0,0.26552284]
[1754265199363,1.64336727,114390.0,114380.0,0.26552284]
[1754265199583,1.67565727,114390.0,114380.0,0.26552284]
[1754265199798,1.67565727,114390.0,114380.0,0.26348284]
[1754265210597,1.67565727,114390.0,114380.0,0.26557284]
[1754265217186,1.64336727,114390.0,114380.0,0.26557284]
[1754265220496,1.67565727,114390.0,114380.0,0.26557284]
[1754265236722,1.67565727,114390.0,114380.0,0.22571284]
[1754265237630,1.67565727,114390.0,114380.0,0.25900284]
[1754265239039,1.67565727,114390.0,114380.0,0.26195284]
[1754265239229,1.05553552,114390.0,114380.0,0.26195284]
[1754265240305,1.67565727,114390.0,114380.0,0.12907284]
[1754265240515,1.67745727,114390.0,114380.0,0.22551284]
[1754265240906,1.67565727,114390.0,114380.0,0.22551284]
[1754265242503,1.67565727,114390.0,114380.0,0.09283284]
[1754265242707,1.67745727,114390.0,114380.0,0.22551284]
[1754265244110,1.67565727,114390.0,114380.0,0.22551284]
[1754265248900,1.67565727,114390.0,114380.0,0.09283284]
[1754265249120,1.67565727,114390.0,114380.0,0.22551284]
[1754265249344,1.67745727,114390.0,114380.0,0.22551284]
[1754265249812,1.67565727,114390.0,114380.0,0.22551284]
[1754265250391,1.67565727,114390.0,114380.0,0.22351284]
[1754265250798,1.67565727,114390.0,114380.0,0.22451284]
[1754265251260,1.47440231,114390.0,114380.0,0.22451284]
[1754265251519,1.50068731,114390.0,114380.0,0.22251284]
[1754265251725,1.50068731,114390.0,114380.0,0.22351284]
[1754265252923,0.26044381,114390.0,114380.0,0.22351284]
[1754265253119,1.50068731,114390.0,114380.0,0.22351284]
[1754265256627,1.53148911,114390.0,114380.0,0.22351284]
[1754265258977,1.53148911,114390.0,114380.0,0.22660284]
[1754265262146,1.53148911,114390.0,114380.0,0.22351284]
[1754265264598,5.52506411,114390.0,114380.0,0.22351284]
[1754265266175,5.52506411,114390.0,114380.0,0.22660284]
[1754265268665,5.52506411,114390.0,114380.0,0.25874284]
[1754265269893,5.52506411,114390.0,114380.0,0.22660284]
[1754265277995,4.28482061,114390.0,114380.0,0.22660284]
[1754265278326,5.52506411,114390.0,114380.0,0.26084284]
[1754265278529,5.49277411,114390.0,114380.0,0.26084284]
[1754265279362,5.52596411,114390.0,114380.0,0.26084284]
[1754265281029,5.52596411,114390.0,114380.0,0.22660284]
[1754265281245,5.52596411,114390.0,114380.0,0.22351284]
[1754265283652,5.52596411,114390.0,114380.0,0.0022]
[1754265283867,5.52596411,114390.0,114380.0,0.1348]
[1754265292141,5.52596411,114390.0,114380.0,0.1328]
[1754265292509,4.28572061,114390.0,114380.0,0.1328]
[1754265292698,5.52596411,114390.0,114380.0,0.1328]
[1754265294339,5.52596411,114390.0,114380.0,0.16978]
[1754265300389,4.28572061,114390.0,114380.0,0.16978]
[1754265300602,5.52596411,114390.0,114380.0,0.16978]
[1754265305273,4.25253061,114390.0,114380.0,0.25841284]
[1754265305486,0.87907736,114390.0,114380.0,0.25841284]
[1754265305905,1.49919911,114390.0,114380.0,0.25841284]
[1754265312809,1.26267619,114390.0,114380.0,0.25841284]
[1754265313250,1.28896219,114390.0,114380.0,0.25841284]
[1754265317674,1.62896219,114390.0,114380.0,0.25841284]
[1754265324929,1.00884044,114390.0,114380.0,0.25841284]
[1754265325133,1.62896219,114390.0,114380.0,0.25841284]
[1754265332127,1.00884044,114390.0,114380.0,0.25841284]
[1754265337497,0.38871869,114390.0,114380.0,0.25841284]
[1754265337701,1.00884044,114390.0,114380.0,0.25841284]
[1754265339187,1.62896219,114390.0,114380.0,0.25841284]
[1754265341158,1.2402435,114390.0,114380.0,0.25841284]
[1754265341521,1.27502691,114390.0,114380.0,0.25841284]
[1754265341955,1.30131191,114390.0,114380.0,0.25841284]
[1754265342748,0.68119016,114390.0,114380.0,0.25841284]
[1754265343154,1.64131191,114390.0,114380.0,0.25841284]
[1754265343744,1.02119016,114390.0,114380.0,0.25841284]
[1754265346020,1.64131191,114390.0,114380.0,0.25841284]
[1754265346463,0.40106841,114390.0,114380.0,0.25841284]
[1754265346881,1.02119016,114390.0,114380.0,0.25841284]
[1754265348730,0.40106841,114390.0,114380.0,0.25841284]
[1754265348949,1.02119016,114390.0,114380.0,0.25841284]
[1754265349159,0.026285,114390.0,114380.0,0.45826858]
[1754265349376,0.62012175,114410.0,114380.0,1.08713311]
[1754265349590,0.02628,114400.0,114390.0,0.26565814]
[1754265349806,0.34,114400.0,114390.0,0.29944264]
[1754265350052,0.34,114400.0,114390.0,0.30794264]
[1754265351407,0.341,114400.0,114390.0,0.30794264]
[1754265351814,0.34,114400.0,114390.0,0.30794264]
[1754265352236,0.342,114400.0,114390.0,0.30794264]
[1754265352620,0.34,114400.0,114390.0,0.30794264]
[1754265353758,0.34,114400.0,114390.0,0.30894264]
[1754265354422,0.34,114400.0,114390.0,0.30994264]
[1754265357051,0.68192303,114410.0,114390.0,0.30994264]
[1754265357258,1.02192303,114410.0,114400.0,0.16636]
[1754265357462,1.02192303,114410.0,114400.0,0.25704284]
[1754265357718,0.366278,114410.0,114400.0,0.25704284]
[1754265357928,4.738e-05,114420.0,114400.0,1.07698976]
[1754265358140,0.64644413,114420.0,114410.0,0.08863284]
[1754265358345,0.98644413,114420.0,114410.0,0.12460284]
[1754265358918,0.98644413,114420.0,114410.0,0.15149159]
[1754265359140,0.98844413,114420.0,114410.0,0.15367671]
[1754265359341,0.98644413,114420.0,114410.0,0.15367671]
[1754265359773,0.98844413,114420.0,114410.0,0.15367671]
[1754265360395,0.98844413,114420.0,114410.0,0.15149159]
[1754265360738,1.02371355,114420.0,114410.0,0.15149159]
[1754265360937,0.99743855,114420.0,114410.0,0.15149159]
[1754265361205,0.3773168,114420.0,114410.0,0.15149159]
[1754265361422,0.99743855,114420.0,114410.0,0.15149159]
[1754265363024,0.3773168,114420.0,114410.0,0.15149159]
[1754265363236,0.99743855,114420.0,114410.0,0.15149159]
[1754265364859,1.02859855,114420.0,114410.0,0.15149159]
[1754265366772,1.05487155,114420.0,114410.0,0.15149159]
[1754265368073,1.02859855,114420.0,114410.0,0.15149159]
[1754265369511,0.4084768,114420.0,114410.0,0.15149159]
[1754265369721,1.02859855,114420.0,114410.0,0.15149159]
[1754265370301,1.02859855,114420.0,114410.0,0.11552159]
[1754265370605,1.6487203,114420.0,114410.0,0.24792159]
[1754265370811,1.02859855,114420.0,114410.0,0.24792159]
[1754265371161,1.6487203,114420.0,114410.0,0.24792159]
[1754265371781,1.6487203,114420.0,114410.0,0.25111159]
[1754265371782,1.02859855,114420.0,114410.0,0.25111159]
[1754265373944,1.6487203,114420.0,114410.0,0.24792159]
[1754265374577,1.02859855,114420.0,114410.0,0.25111159]
[1754265374731,0.99743855,114420.0,114410.0,0.28664159]
[1754265377376,1.02906855,114420.0,114410.0,0.28664159]
[1754265378858,1.6491903,114420.0,114410.0,0.24792159]
[1754265382187,1.6491903,114420.0,114410.0,0.11552159]
[1754265382398,1.6491903,114420.0,114410.0,0.24792159]
[1754265384890,1.6491903,114420.0,114410.0,0.22103284]
[1754265397233,1.6491903,114420.0,114410.0,0.08863284]
[1754265397459,1.6491903,114420.0,114410.0,0.22099284]
[1754265399407,0.4089468,114420.0,114410.0,0.22099284]
[1754265399602,1.6491903,114420.0,114410.0,0.22099284]
[1754265399783,0.4089468,114420.0,114410.0,0.22418284]
[1754265399982,1.6491903,114420.0,114410.0,0.22418284]
[1754265406411,0.34,114410.0,114400.0,0.0134705]
[1754265406615,0.96012175,114410.0,114400.0,0.23446334]
[1754265406829,0.99136175,114410.0,114400.0,0.23765334]
[1754265407242,0.99136175,114410.0,114400.0,0.27001334]
[1754265409334,0.99136175,114410.0,114400.0,0.13765334]
[1754265409556,0.99136175,114410.0,114400.0,0.27001334]
[1754265409965,0.99136175,114410.0,114400.0,0.13765334]
[1754265410179,0.99136175,114410.0,114400.0,0.27001334]
[1754265410576,0.99136175,114410.0,114400.0,0.27101334]
[1754265412269,0.99136175,114410.0,114400.0,0.13865334]
[1754265412489,0.99136175,114410.0,114400.0,0.27101334]
[1754265412620,0.96012175,114410.0,114400.0,0.27311334]
[1754265415341,0.0615978,114420.0,114400.0,0.27311334]
[1754265415553,0.62012175,114410.0,114400.0,0.1489305]
[1754265416234,0.62012175,114410.0,114400.0,0.1844805]
[1754265416644,0.62012175,114410.0,114400.0,0.1834805]
[1754265417966,0.96012175,114410.0,114400.0,0.1844805]
[1754265418265,0.96012175,114410.0,114400.0,0.27311334]
[1754265427017,0.34,114410.0,114400.0,0.27311334]
[1754265427263,0.96012175,114410.0,114400.0,0.27311334]
[1754265432404,0.62012175,114410.0,114400.0,0.27311334]
[1754265433192,0.62012175,114410.0,114400.0,0.29947491]
[1754265435045,0.62012175,114410.0,114400.0,0.47430008]
[1754265435259,0.68171555,114420.0,114400.0,0.47430008]
[1754265435453,1.02171555,114420.0,114410.0,0.08863284]
[1754265435654,1.6741573,114420.0,114410.0,0.09180284]
[1754265436246,1.05403555,114420.0,114410.0,0.09180284]
[1754265436433,0.4339138,114420.0,114410.0,0.09180284]
[1754265436684,1.6741573,114420.0,114410.0,0.09180284]
[1754265436890,1.6761573,114420.0,114410.0,0.09180284]
[1754265437099,1.6741573,114420.0,114410.0,0.09180284]
[1754265437287,1.6761573,114420.0,114410.0,0.09180284]
[1754265437965,1.6761573,114420.0,114410.0,0.22095284]
[1754265441710,1.6761573,114420.0,114410.0,0.08863284]
[1754265442052,5.69643404,114420.0,114410.0,0.22095284]
[1754265446651,4.45619054,114420.0,114410.0,0.22095284]
[1754265446821,5.69643404,114420.0,114410.0,0.22095284]
[1754265450668,5.6697323,114420.0,114410.0,0.22095284]
[1754265452085,6.28985405,114420.0,114410.0,0.22095284]
[1754265452508,5.6697323,114420.0,114410.0,0.22095284]
[1754265452730,6.28985405,114420.0,114410.0,0.08863284]
[1754265452940,2.32298079,114420.0,114410.0,0.13244]
[1754265453159,6.31655579,114420.0,114410.0,0.13244]
[1754265456397,5.69643404,114420.0,114410.0,0.13244]
[1754265456611,6.31655579,114420.0,114410.0,0.13244]
[1754265462292,5.6697323,114420.0,114410.0,0.13244]
[1754265465518,5.6697323,114420.0,114410.0,0.1356]
[1754265466854,4.4294888,114420.0,114410.0,0.1356]
[1754265467050,5.6697323,114420.0,114410.0,0.1356]
[1754265467653,5.6697323,114420.0,114410.0,0.13244]
[1754265468088,0.34,114410.0,114400.0,0.0497105]
[1754265468328,1.5802435,114410.0,114400.0,0.1841005]